Cogmind - Beta 15 @@@ ROGUE MODE // 2025.05.08 @ 16:25:41 Player: Geo Result: Destroyed by TJ-ECB(p) with EM Pulse Gun Performance ------------- Evolutions (0) 0 Regions Visited (3) 600 Robots Destroyed (17) 85 Value Destroyed (637) 637 Prototype IDs (22) 440 Alien Tech Used (0) 0 Bonus (800) 800 TOTAL SCORE: 2562 Bonus ------- Registered with UFD 300 Met Optimus in HQ 500 Cogmind --------- Core Integrity 0/250 Matter 300/300 Energy 100/100 System Corruption 1% Temperature Cool (0) Movement Core (100) Ox1 Location -9/Scraptown Parts ------- > --- POWER (1) -------- (None) > --- PROPULSION (2) --- (None) > --- UTILITY (2) ------ A0-MCA's Component Scanner > --- WEAPON (2) ------- Companion Sword > --- INVENTORY (5) ---- Structural Scanner Compact Gauss Rifle Peak State ------------ > --- POWER ------------ (None) > --- PROPULSION ------- Flight Unit VTOL Module > --- UTILITY ---------- A0-MCA's Component Scanner Master Drone Bay > --- WEAPON ----------- Power Maul Companion Sword > --- INVENTORY -------- Structural Scanner Battle Rifle Compact Gauss Rifle Grenade Launcher [Rating: 32] Favorites ----------- Power Light Nuclear Core Engine Ion Engine Power Core Light Nuclear Core Propulsion Light Treads Treads Light Treads Leg Aluminum Leg Wheel Compact Wheel Flight Unit Flight Unit Utility Large Storage Unit Device Structural Scanner Storage Large Storage Unit Processor A0-MCA's Component Scanner Weapon Grenade Launcher Energy Cannon Subdweller Beam Cannon Ballistic Gun Assault Rifle Ballistic Cannon Battle Cannon Launcher Grenade Launcher Impact Weapon Power Maul Slashing Weapon Companion Sword Build | -11 -10 -10 -9 ------- Run | Yrd Mat Sub Scr Slots Evolved . | . . . . Power . | . . . . Propulsion . | . . . . Utility . | . . . . Weapon . | . . . . Parts Attached 31 | . 3 10 18 Power 2 | . . 1 1 Engine . | . . . . Core 2 | . . 1 1 Reactor . | . . . . Propulsion 11 | . 2 3 6 Treads 7 | . . 3 4 Leg . | . . . . Wheel 2 | . 2 . . Hover . | . . . . Flight 2 | . . . 2 Utility 8 | . 1 1 6 Device 4 | . . 1 3 Storage 3 | . 1 . 2 Processor 1 | . . . 1 Hackware . | . . . . Protection . | . . . . Artifact . | . . . . Weapon 10 | . . 5 5 Energy Gun . | . . . . Energy Cannon 1 | . . 1 . Ballistic Gun 4 | . . 2 2 Ballistic Cannon 1 | . . . 1 Launcher 2 | . . 2 . Special Weapon . | . . . . Impact Weapon 1 | . . . 1 Slashing Weapon 1 | . . . 1 Piercing Weapon . | . . . . Special Melee Weapon . | . . . . Unidentified Prototypes 1 | . . . 1 Parts Lost 5 | . . 2 3 Power 1 | . . . 1 Propulsion 2 | . . . 2 Utility . | . . . . Weapon 2 | . . 2 . Highest Loss Streak 2 | . . 2 2 To Critical Strikes 1 | . . 1 . Average Backups 12 | . 10 12 13 Power 2 | . 1 2 1 Propulsion 2 | . 4 2 2 Utility 2 | . 1 2 3 Weapon 4 | . 2 5 4 Tool/Special . | . . . . Unused Backups 18 | . . 5 13 Power 1 | . . . 1 Propulsion 5 | . . 2 3 Utility 6 | . . . 6 Weapon 6 | . . 3 3 Tool/Special . | . . . . Average Slot Usage (%) 91 | . 86 89 92 Engine 3 | . 14 9 . Core 9 | . . 4 12 Treads 24 | . . 27 24 Flight 2 | . . . 3 Device 9 | . . 4 12 Storage 12 | . 15 14 12 Processor 1 | . . . 1 Energy Cannon 6 | . . 4 8 Ballistic Gun 5 | . 28 11 . Launcher 8 | . . 11 8 Slashing Weapon 3 | . . . 5 Peak Build Rating 32 | . 7 14 32 Average Rating 13 | . 6 10 16 On Entrance 8 | 6 6 7 14 Naked Turns . | . . . . Heaviest Build 57 | 14 34 38 57 Greatest Support 43 | 20 26 40 43 Greatest Overweight (x) 1 | . 1 1 1 Average Overweight (x) . | . . . . Largest Inventory Capacity 20 | . 15 15 20 Average Capacity 15 | . 13 15 15 Most Carried 20 | . 14 15 20 Average Carried 13 | . 10 13 13 Final Capacity 15 | 8 15 15 5 Final Carried 14 | 6 14 13 2 Class Distribution -------------------- 79% | Mutant 20% | Derelict-Mutant Dominant Class ---------------- Mutant | -10/Materials Mutant | -10/Subcaves Mutant | -9/Scraptown Resources | -11 -10 -10 -9 ----------- Run | Yrd Mat Sub Scr Matter Collected 912 | 200 78 404 230 Remotely . | . . . . Salvage Created 568 | . 63 234 271 Parts 32 | . 7 8 17 Haulers Intercepted . | . . . . Recyclers Shooed . | . . . . Parts Field Recycled . | . . . . Retrieved Matter . | . . . . Parts Self-Destructed 14 | . . 14 . Prevented . | . . . . Kills | -11 -10 -10 -9 ------- Run | Yrd Mat Sub Scr Combat Hostiles Destroyed 14 | . . 10 4 Melee 4 | . . . 4 Guns 1 | . . 1 . AOE 8 | . . 8 . Classes Destroyed 8 | . 3 3 2 Tunneler 1 | . 1 . . Operator 1 | . 1 . . Watcher 1 | . 1 . . Grunt 2 | . . 2 . Sentry 1 | . . 1 . Subdweller 7 | . . 7 . Ranger 1 | . . . 1 Scrapper 3 | . . . 3 Best Kill Streak 3 | . 1 3 2 Combat Bots Only 3 | . . 3 2 Max Kills in Single Turn 1 | . 1 1 1 Gunslinging . | . . . . Exploded 1 | . . 1 . Melee 1 | . . . 1 Uniques/NPCs Destroyed . | . . . . Combat | -11 -10 -10 -9 -------- Run | Yrd Mat Sub Scr Hostile Shots Fired 107 | . . 50 57 Missed 37 | . . 18 19 Hits 70 | . . 32 38 Projectile 70 | . . 32 38 Critical Strikes 3 | . . 2 1 Damage Taken 1158 | . . 695 463 Core 253 | . . 108 145 Absorbed by Shields . | . . . . Core Remaining (%) 100 | 100 . . . Volleys Fired 56 | . 8 47 1 Largest 2 | . 2 2 1 Hottest 80 | . 40 80 33 Shots Fired 70 | . 16 53 1 Gun 28 | . 16 12 . Cannon 14 | . . 13 1 Launcher 28 | . . 28 . Special . | . . . . Kinetic 29 | . 16 12 1 Thermal 13 | . . 13 . Explosive 28 | . . 28 . Electromagnetic . | . . . . Robot Hit Streak 21 | . 11 21 3 Robot Miss Streak 2 | . 2 1 . Penetration Max . | . . . . Secondary Targets 1 | . 1 . . Max Gunslinging Chain 1 | . 1 . . Shots Hit Robots 41 | . 12 24 5 Core Hits 28 | . 4 20 4 Critical Kills 1 | . . 1 . Critical Parts Destroyed . | . . . . Critical Strikes 1 | . . 1 . Meltdown 1 | . . 1 . Melee Attacks 88 | . . . 88 Impact 24 | . . . 24 Slashing 64 | . . . 64 Piercing . | . . . . Sneak Attacks . | . . . . Combat Hostiles . | . . . . Follow-up Attacks . | . . . . Damage Inflicted 1719 | . 151 1363 205 Guns 378 | . 151 227 . Cannons 84 | . . 56 28 Explosions 1080 | . . 1080 . Melee 177 | . . . 177 Ramming . | . . . . Kinetic 406 | . 151 227 28 Thermal 56 | . . 56 . Explosive 1080 | . . 1080 . Electromagnetic . | . . . . Impact . | . . . . Slashing 177 | . . . 177 Piercing . | . . . . Highest Corruption 1 | . . . 1 Average Corruption 1 | . . . 1 Corruption Purged . | . . . . Corruption Blocked . | . . . . Overload Shots . | . . . . Overflow Damage . | . . . . Projectiles . | . . . . Explosions . | . . . . Melee . | . . . . Knockbacks . | . . . . Impact . | . . . . Kinetic . | . . . . Secondary . | . . . . Self-Inflicted Damage 79 | . . 79 . Shots 8 | . . 8 . Rammed . | . . . . Targets Rammed . | . . . . Kicked . | . . . . Crushed . | . . . . Highest Temperature 42 | . . 42 . Average Temperature 12 | . . 12 . Received Heat Transfer 279 | . . 150 129 Siege Activations . | . . . . Martial Activations . | . . . . Shielding Activations . | . . . . Robots Disrupted . | . . . . Combat Hostiles . | . . . . Robots Corrupted . | . . . . Combat Hostiles . | . . . . Parts Fried . | . . . . Impact Corruptions . | . . . . Robots Melted 1 | . . 1 . Combat Hostiles 1 | . . 1 . Parts Melted 5 | . . 3 2 Heat Transferred 74 | . . 74 . Parts Sabotaged . | . . . . Parts Stolen . | . . . . Parts Stripped . | . . . . Power Chain Reactions . | . . . . Alert | -11 -10 -10 -9 ------- Run | Yrd Mat Sub Scr Maximum Alert Level . | . . . . Low Security (%) 100 | . 100 . . Level 1 . | . . . . Level 2 . | . . . . Level 3 . | . . . . Level 4 . | . . . . Level 5 . | . . . . High Security . | . . . . Max Security . | . . . . Peak Influence 7 | . 7 . . Initial . | . . . . Average . | . . . . Influence Increases 87 | . 17 70 . Destroy 0b10 Robot/C 60 | . . 60 . Destroy 0b10 Robot/NC 15 | . 15 . . Destroy Leader 12 | . 2 10 . Influence Decreases 87 | . 17 70 . Time Decay 87 | . 17 70 . Squads Dispatched 4 | . 4 . . Investigation 2 | . 2 . . Extermination . | . . . . Reinforcement 2 | . 2 . . Assault . | . . . . Garrison . | . . . . Intercept . | . . . . Searches Triggered . | . . . . Construction Impeded . | . . . . Haulers Reinforced . | . . . . Active Scanning Responses . | . . . . Cargo Convoy Interrupts . | . . . . Stealth | -11 -10 -10 -9 --------- Run | Yrd Mat Sub Scr Distress Signals 4 | . 4 . . Communications Jammed . | . . . . Distress Signals . | . . . . Times Spotted 50 | . 11 11 28 Peak Tracking Total 8 | . 5 3 8 Tactical Retreats 2 | . . . 2 Traps | -11 -10 -10 -9 ------- Run | Yrd Mat Sub Scr Traps Triggered 2 | . 1 1 . Indirectly . | . . . . Trap Hack Attempts . | . . . . Triggered . | . . . . Disarmed . | . . . . Reprogrammed . | . . . . Reused . | . . . . Traps Extracted . | . . . . Installed . | . . . . Triggered . | . . . . Most Traps Carried 1 | . . 1 1 Machines | -11 -10 -10 -9 ---------- Run | Yrd Mat Sub Scr Machines Disabled 8 | . . 1 7 Max in Single Turn 1 | . . 1 1 Machines Repaired . | . . . . Machines Dismantled . | . . . . Machines Sabotaged . | . . . . Overloaded Fab Kills . | . . . . Hacking | -11 -10 -10 -9 --------- Run | Yrd Mat Sub Scr Machines Accessed 9 | . . 1 8 Terminals . | . . . . Fabricators . | . . . . Repair Stations . | . . . . Recycling Units . | . . . . Scanalyzers . | . . . . Garrison Access . | . . . . Total Hacks 53 | . . 9 44 Successful 53 | . . 9 44 Failed . | . . . . Catastrophic . | . . . . Database Lockouts . | . . . . Manual . | . . . . Terminals . | . . . . Fabricators . | . . . . Repair Stations . | . . . . Recycling Units . | . . . . Scanalyzers . | . . . . Garrison Access . | . . . . Terminal Hacks 53 | . . 9 44 Record 50 | . . 8 42 Open Door 1 | . . . 1 Proto ID Catalog 2 | . . 1 1 Fabricator Hacks . | . . . . Repair Station Hacks . | . . . . Recycling Unit Hacks . | . . . . Scanalyzer . | . . . . Garrison Access Hacks . | . . . . Unauthorized Hacks . | . . . . Terminals . | . . . . Fabricators . | . . . . Repair Stations . | . . . . Recycling Units . | . . . . Scanalyzers . | . . . . Garrison Access . | . . . . Data Cores Recovered . | . . . . Used . | . . . . Hacking Detections . | . . . . Full Trace Events . | . . . . Feedback Events . | . . . . Feedback Blocked . | . . . . Robot Schematics Acquired . | . . . . Robots Built . | . . . . Authchips . | . . . . Time . | . . . . Total Robot Build Rating . | . . . . Part Schematics Acquired . | . . . . Parts Built . | . . . . Authchips . | . . . . Time . | . . . . Total Part Build Rating . | . . . . Parts Repaired . | . . . . Time . | . . . . Parts Recycled . | . . . . Recycled Matter . | . . . . Retrieved Matter . | . . . . Retrieved Components . | . . . . Parts Scanalyzed . | . . . . Part Schematics Acquired . | . . . . Parts Damaged . | . . . . Bothacking | -11 -10 -10 -9 ------------ Run | Yrd Mat Sub Scr Used RIF Installer . | . . . . Robots Hacked . | . . . . Non-combat . | . . . . Combat . | . . . . Robot Hacks Applied . | . . . . Relay Couplers Released . | . . . . Fabnet Peak Effective % . | . . . . Robots Rewired . | . . . . Allies Hacked . | . . . . Hacks Repelled . | . . . . Allies | -11 -10 -10 -9 -------- Run | Yrd Mat Sub Scr Total Allies . | . . . . Largest Group . | . . . . Highest-Rated Group . | . . . . Highest-Rated Ally . | . . . . Total Orders 1 | . . . 1 EXPLORE 1 | . . . 1 Ally Attacks . | . . . . Total Damage . | . . . . Kills . | . . . . Allies Corrupted . | . . . . Allies Melted 7 | . . . 7 Intel | -11 -10 -10 -9 ------- Run | Yrd Mat Sub Scr Active Infowar (turns) 4060 | . . 502 3558 Optics 502 | . . 502 . Terrain 799 | . . . 799 Structural 2759 | . . . 2759 Robot Analysis Total . | . . . . Derelict Logs Recovered 3 | . . 1 2 Drone Launches 2 | . . . 2 Drone Recoveries 2 | . . . 2 Exploration | -11 -10 -10 -9 ------------- Run | Yrd Mat Sub Scr Turns Passed 6493 | . 207 2133 4153 Spaces Moved 4058 | 1 150 1251 2656 Core 13 | . . . 13 Treads 3223 | . . 1235 1988 Legs 36 | 1 35 . . Wheels 131 | . 115 16 . Hover . | . . . . Flight 655 | . . . 655 Fastest Speed 34 | 120 105 105 34 Average Speed 147 | 120 113 159 143 Slowest Speed 250 | 120 190 160 250 Overloaded Moves . | . . . . Propulsion Burnouts . | . . . . Robots Hopped . | . . . . Potential Cave-ins . | . . . . Cave-ins Triggered . | . . . . Exploration Rate (%) 49 | 2 43 56 96 Regions Visited 3 Branch Regions 2 Pre-discovered Areas 2 | . . 1 1 Known Exits Taken . | . . . . Unknown Exits Taken 3 | 1 1 1 . Scrap Searched 15 | . . 5 10 Spaces Dug 20 | . . 14 6 Terrain Destroyed 121 | . . 115 6 Melee 6 | . . . 6 Projectile 2 | . . 2 . AOE 113 | . . 113 . Terrain Rammed . | . . . . Walls Destroyed . | . . . . Machines Disabled . | . . . . Actions | -11 -10 -10 -9 --------- Run | Yrd Mat Sub Scr Total 4371 | . 170 1336 2865 Wait 71 | . 1 12 58 Move 4055 | . 149 1250 2656 Hop . | . . . . Pick Up 27 | . 8 8 11 Fast Attach 11 | . 1 1 9 Attach 7 | . . 3 4 Detach 4 | . . . 4 Swap 19 | . 2 7 10 Drop 39 | . 1 8 30 Fire 56 | . 8 47 1 Melee 82 | . . . 82 Ram . | . . . . Kick . | . . . . Crush . | . . . . Escape Stasis . | . . . . Rewire . | . . . . Trap . | . . . . Miscellaneous . | . . . . Route ------- -11/Scrapyard -10/Materials (discovered 2 exits: [*Min] / *Sub) -10/Subcaves (discovered 2 exits: [*Mat] / *Scr) -9/Scraptown (discovered 2 exits: [*Fac x2]) History --------- Turn | Location | Event 1 | -11/Scrapyard | Discovered new exit (range 0) 1 | -11/Scrapyard | Entered Materials 2 | -10/Materials | Met a group of wandering Federalists 171 | -10/Materials | Discovered new exit (range 15) 189 | -10/Materials | Discovered new exit (range 6) 208 | -10/Materials | Entered Subcaves 209 | -10/Subcaves | Approached by a straggling Scientist 308 | -10/Subcaves | Scientist uncovered a shortcut to Scraptown 318 | -10/Subcaves | Build established: Mutant 321 | -10/Subcaves | Shifting Twisted Machinery released Sub. Monowheel 326 | -10/Subcaves | Shifting Twisted Machinery released Battle Cannon 410 | -10/Subcaves | A swath of the cavern ceiling suddenly collapsed 476 | -10/Subcaves | Shifting Twisted Machinery released Flamer 939 | -10/Subcaves | Learned location of Zion (-7) 939 | -10/Subcaves | Met a Zionite searching for "candidates" 1480 | -10/Subcaves | Ambushed by Subdweller buried in earth 1484 | -10/Subcaves | Discovered new exit (range 9) 1492 | -10/Subcaves | Ambushed by Subdweller buried in earth 2025 | -10/Subcaves | Visited 4L-MR0's lab 2047 | -10/Subcaves | Found Power Bank 2341 | -10/Subcaves | Entered Scraptown 2943 | -9/Scraptown | Scanned Subdweller tech in exchange for log data 2946 | -9/Scraptown | Learned Factory emergency access door positions 2948 | -9/Scraptown | Learned location of Warlord (-4) 2968 | -9/Scraptown | Discovered new exit (range 11) 3135 | -9/Scraptown | Visited Bundlers 3262 | -9/Scraptown | Visited Shadow of the Wyrm 3327 | -9/Scraptown | Visited TADAMA 3378 | -9/Scraptown | Visited Cyclists 3489 | -9/Scraptown | Visited SPCMW 3572 | -9/Scraptown | Visited UFD Registry 3593 | -9/Scraptown | Visited Supply Room 3714 | -9/Scraptown | Visited CPS Storage 4020 | -9/Scraptown | Registered with UFD as "Shockparser" 4103 | -9/Scraptown | Visited Science Guys 4209 | -9/Scraptown | Visited Observation Area 4375 | -9/Scraptown | Discovered new exit (range 5) 4463 | -9/Scraptown | Visited A0-MCA Data Center 4473 | -9/Scraptown | Given an A- rating by A0-MCA 4476 | -9/Scraptown | Found A0-MCA's Component Scanner 4498 | -9/Scraptown | Visited Scrap Suit Storage 4555 | -9/Scraptown | Visited DA-N13 Charitable Foundation 4586 | -9/Scraptown | Found DCF Scrap (27 items) 4712 | -9/Scraptown | Visited Sword Containment 4789 | -9/Scraptown | Visited Curators Association 4893 | -9/Scraptown | Build established: Derelict-Mutant 5247 | -9/Scraptown | Visited Junk Repository 5477 | -9/Scraptown | Met Optimus 5477 | -9/Scraptown | Accepted into 0bPrime 5647 | -9/Scraptown | Found Scrap Suit 5765 | -9/Scraptown | Civil war broke out across Scraptown 5818 | -9/Scraptown | Lost 4 allies 5862 | -9/Scraptown | Found Prototype Processor 5885 | -9/Scraptown | Lost 4 allies 5921 | -9/Scraptown | Core integrity fell below 50% 5942 | -9/Scraptown | Identified Expert System 5966 | -9/Scraptown | Optimus destroyed in the chaos of civil war 6206 | -9/Scraptown | Build established: Mutant 6392 | -9/Scraptown | Lost 3 allies 6433 | -9/Scraptown | Found Master Drone Bay 6487 | -9/Scraptown | Core integrity fell below 20% 6494 | -9/Scraptown | Destroyed by TJ-ECB(p) with EM Pulse Gun Last Messages --------------- 06451_ Ovr. Pulse Rifle melted. 06451_ HC-E4Q(j) destroyed. 06453_ NI-SDT(j) cannibalizes VSS Leg to repair Ovr. Titanium Leg. 06457_ Component scanned: Siege Cannon [Triborg]. 06460_ Dropped Grenade Launcher. 06460_ Slug penetrates Machine. 06460_ Machine disabled. 06460_ Dropped Battle Rifle. 06461_ NI-SDT(j) switches sides. 06462_ NI-SDT(j) heat damages Mak. Salvage Targeting Computer. 06467_ 4K-XNX(E) destroyed. 06474_ 0bJail breached. 06474_ VTOL Module destroyed. 06474_ Slug penetrates 0bJail. 06476_ Dropped Master Drone Bay. 06477_ Dropped Power Maul. 06478_ Slug penetrates 0bJail. 06478_ Flight Unit destroyed. 06481_ Slug penetrates 0bJail. 06490_ Bolt penetrates Wall. Map ----- +----------------------------------------------------+ | ?????????????????????????????????????????????????? | | ?????????????????????????????????????????????????? | | ?????????????????????????????????????????????????? | | ????????????????????????????????#######??????????? | | ????????????????????????????????#######??????????? | | ?#####################?######???##"""##??????????? | | ?#############################??##" "##??????????? | | ##"""##"""##""|##"""##### =####### < ###?????????? | | ##"" ##"" ##""|##!!"####!!!!###### ###?????????? | | ##"" [=!= ##?????????? | | ## %%%! ##?????????? | | ########################**!%############?????????? | | #########################%p#############?????????? | | #????????????############!*###########???????????? | | #????????????##"""""""""#*%############??????????? | | #????????????##" "#!=#"""""""""##??????????? | | #??????????####" """"" "#!=#"""""""""##??????????? | | ### """????"###" " " "#[!#"""""""""##??????????? | | ###"""" "###" " " ;%=#"""""""""##??????????? | | ### " """ ###" " " "#!%#""" """##??????????? | | ### """""" ###" " " "#%!#""" """##??????????? | | ###" """ ###" ""/"" "#l/#""" "##??????????? | | ###"" ###" ! "#!*#"""" """##??????????? | | ### ### ""#=!#""" """##??????????? | | #????"""""???## =%! #=*#" ##??????????? | | ####### ###########=#####@j## #########??????????? | | ####### ###########%#####%!##[################???? | | " " "" """""" """"="!" "[=" "###############???? | | %=!* % =*!%* h "## #"""""# ##???? | | /!= [ [ ## !!!! # ##???? | | !%[ [% [ ## ##""##???? | | !!= =[* = = =# X" ###???? | | %!* =%! = =%%[=* ###???? | | "" "" " """""""" """/% % =#!% ##????? | | """"""""""""""""""""""""" = [ ;# !!!! !##????? | | ##### ################"" *]];# #"""""#""##????? | | ###########"" *"##############????? | | X"##??????##"" "##![ * *######????? | | "" "" ###????####""!!! !"##*=|%! ##????????? | | ""=![ "" X"##########""]!=***##![//]=##????????? | | = !%! " ######### #="=&==!"##]**[####????????? | | % "" [!%%=[!=[%!%=! =###????????? | | "" !%!=!!!! *##!==!= ##????????? | | " " #########=*% =!! "##![=% ##????????? | | "" [ " ""##########![[%!!!"##! / ] #######???? | | "" %* ###????####[%=!=[ "###############???? | | = "##??????##"[=!*! "####### ##???? | | ###########"[![!=="## ## ##???? | | ##### ################"=%%!!["## ## ##???? | | """"""" """"""""""""""""[!%=!!"## !X# ##???? | +----------------------------------------------------+ Best States ------------- Heat Dissipation 25 Energy Generation 14 Energy Capacity 250 Matter Stores 300 Matter Capacity 300 Sight Range 21 Terrain Scan Range 14 Terrain Scan Density 10 Evasion (%) 63 Recoil Reduction 2 Item Schematics ----------------- None Robot Schematics ------------------ None Fabricated ------------ Nothing Repaired ---------- Nothing Alien Tech Used ----------------- None Achievements -------------- None Challenges ------------ None Game ------ Seed HeavyElectronScrapsphere Manual? 0 Play Time 00:53:13 Cumulative 479.1 hours Start 2025.05.08 @ 15:31:58 End 2025.05.08 @ 16:25:41 Sessions 1 Manual Loads 0 Difficulty Rogue Special Mode None Game No. 531 Rogue 531 Adventurer 0 Explorer 0 Win Type - Total 14 Types 9/0/4/1/0/0/0/0/0/0 Lore% 64 Gallery% 77 Achievement% 82 Wizard Run 0 Options --------- Layout 0 ASCII 0 Keyboard 0 Movement Numpad Keybinds 0 Fullscreen 1 Font 18/SmallcapsGlow Map View 76x50 Zoom Use 0% Tactical HUD 1 Map Filters NONE Filters NONE Steam 1 RUN: 70a240ea-458d-4826-8228-9de5ef0e13ce